bitfinex-derivatives/quotes_SOLF0:USTF0_20241227
["timestamp","ask_amount","ask_price","bid_price","bid_amount"]
[1735305545171,2.635,189.99,189.95,5.8755]
[1735305546973,11.99463256,190.03,189.96,2.6354]
[1735305546974,2.6348,190.01,189.96,2.6354]
[1735305548271,2.6348,190.0,189.96,2.6354]
[1735305549682,2.6348,190.0,189.95,3.24]
[1735305549976,2.6348,190.0,189.95,5.8755]
[1735305550177,7.67117612,190.0,189.95,3.24]
[1735305550476,7.67117612,190.0,189.97,2.6351]
[1735305552070,7.67117612,190.02,189.98,2.6351]
[1735305552277,11.98587612,190.04,189.95,10.91117612]
[1735305552577,7.67117612,190.02,189.95,10.91117612]
[1735305552768,7.67117612,190.02,189.98,2.635]
[1735305553272,7.67117612,190.02,189.95,10.91117612]
[1735305553273,7.67117612,190.02,189.99,2.6349]
[1735305554280,2.6347,190.01,189.95,10.91117612]
[1735305555279,10.30607612,190.0,189.92,3.2525]
[1735305555474,1.6803,190.04,189.92,3.2525]
[1735305555475,7.67117612,189.98,189.92,3.2525]
[1735305555674,1.6803,190.04,189.95,2.6355]
[1735305555878,7.67117612,190.03,189.95,7.67117612]
[1735305556083,7.67117612,190.03,189.97,7.67117612]
[1735305556280,7.67117612,190.03,189.97,10.91117612]
[1735305556479,10.30557612,190.03,189.99,2.6349]
[1735305556877,10.30557612,190.03,189.97,10.91117612]
[1735305557180,7.67117612,190.01,189.98,2.6351]
[1735305557485,7.67117612,190.01,189.97,3.24]
[1735305557787,10.30617612,189.99,189.95,2.6355]
[1735305558282,7.67117612,189.99,189.92,3.2525]
[1735305558483,7.67117612,189.97,189.91,7.67117612]
[1735305558682,7.67117612,189.97,189.92,2.6359]
[1735305558683,2.6354,189.96,189.92,2.6359]
[1735305562291,2.6355,189.95,189.91,2.6361]
[1735305562486,7.67117612,189.97,189.89,7.67117612]
[1735305562692,7.67117612,189.95,189.87,14.12527612]
[1735305563282,7.67117612,189.95,189.9,2.6361]
[1735305563283,2.6357,189.94,189.9,2.6361]
[1735305563890,10.30667612,189.95,189.9,2.6361]
[1735305564192,10.30667612,189.95,189.91,2.636]
[1735305565089,1.6803,190.04,189.87,6.4541]
[1735305565290,2.635,189.99,189.95,2.6355]
[1735305565485,7.67117612,190.0,189.93,10.93117612]
[1735305567197,10.30597612,190.0,189.95,2.6355]
[1735305567400,7.67117612,190.0,189.93,3.26]
[1735305568096,2.6351,189.98,189.94,2.6355]
[1735305571605,2.6355,189.95,189.89,3.26]
[1735305572500,2.6355,189.95,189.91,2.636]
[1735305573302,2.6354,189.96,189.91,2.636]
[1735305573502,10.30657612,189.96,189.91,2.636]
[1735305575109,7.67117612,189.94,189.88,2.6365]
[1735305575603,2.6359,189.93,189.88,2.6365]
[1735305575906,2.6359,189.93,189.87,14.12527612]
[1735305576106,2.6359,189.93,189.89,2.6363]
[1735305577201,2.6359,189.92,189.87,16.76177612]
[1735305577509,2.6359,189.92,189.87,13.50177612]
[1735305580512,1.608,189.99,189.89,7.67117612]
[1735305580712,7.67117612,189.97,189.91,7.67117612]
[1735305581207,10.30617612,189.99,189.94,2.6356]
[1735305581411,7.67117612,189.99,189.91,10.93117612]
[1735305581914,2.6352,189.97,189.91,10.93117612]
[1735305583416,2.6352,189.97,189.93,2.6357]
[1735305583817,10.30667612,189.95,189.91,3.26]
[1735305585518,7.67117612,189.97,189.91,3.26]
[1735305585718,7.67117612,189.97,189.91,10.93117612]
[1735305585919,10.30627612,189.99,189.91,10.93117612]
[1735305586122,2.6348,190.01,189.93,7.67117612]
[1735305586315,7.67117612,190.0,189.93,7.67117612]
[1735305586815,7.67117612,190.0,189.96,2.6353]
[1735305587224,10.30607612,190.0,189.96,2.6353]
[1735305589512,2.6351,189.98,189.94,2.6356]
[1735305591612,2.6351,189.98,189.93,10.30697612]
[1735305592623,2.6354,189.97,189.93,2.6358]
[1735305592823,7.67117612,189.98,189.91,10.93117612]
[1735305593122,2.6354,189.96,189.92,2.6359]
[1735305594325,2.6352,189.97,189.93,2.6358]
[1735305594527,7.67117612,189.99,189.91,10.93117612]
[1735305594925,2.6351,189.98,189.94,2.6356]
[1735305596424,10.30617612,189.99,189.95,2.6355]
[1735305601120,7.67117612,189.99,189.91,10.93117612]
[1735305601427,6.5035,190.04,189.92,5.8558]
[1735305601428,10.30647612,189.97,189.92,5.8558]
[1735305601628,7.67117612,189.99,189.92,3.22]
[1735305601822,3.2835,190.04,189.92,10.89117612]
[1735305602025,7.67117612,190.02,189.94,7.67117612]
[1735305602628,10.30597612,190.01,189.96,2.6354]
[1735305603125,2.6343,190.04,189.99,2.6348]
[1735305603330,10.30547612,190.04,189.99,2.6348]
[1735305603529,7.67117612,190.04,189.97,3.22]
[1735305603730,2.6345,190.02,189.97,5.8551]
[1735305605225,2.6345,190.02,189.98,2.6351]
[1735305605730,7.67117612,190.04,189.99,2.6349]
[1735305605731,2.6344,190.03,189.99,2.6349]
[1735305609125,2.6344,190.03,189.97,3.22]
[1735305609329,7.67117612,190.04,189.97,3.22]
[1735305609629,9.26707612,190.09,190.02,7.67117612]
[1735305609832,9.26707612,190.09,190.04,2.6342]
[1735305610029,10.30477612,190.09,190.04,2.6342]
[1735305611132,10.30477612,190.09,190.02,10.89117612]
[1735305611432,2.6339,190.07,190.02,3.22]
[1735305611731,10.30507612,190.07,190.02,5.8545]
[1735305612126,2.634,190.06,190.02,5.8545]
[1735305612527,7.67117612,190.05,189.99,7.67117612]
[1735305612727,2.6343,190.04,189.98,3.22]
[1735305613022,2.6343,190.04,189.99,2.6348]
[1735305614932,2.6343,190.04,190.0,2.6348]
[1735305621039,10.30537612,190.05,190.01,2.6347]
[1735305621532,2.6342,190.05,190.01,2.6347]
[1735305621737,2.6339,190.07,190.03,2.6343]
[1735305621939,7.67117612,190.1,190.03,7.67117612]
[1735305622237,29.41302554,190.14,190.07,7.67117612]
[1735305622535,7.67117612,190.14,190.07,7.67117612]
[1735305622837,7.67117612,190.14,190.08,3.2]
[1735305623039,2.6332,190.12,190.08,3.2]
[1735305623433,7.67117612,190.1,190.04,3.3164]
[1735305623631,2.6338,190.08,190.04,1.644]
[1735305623838,2.6338,190.08,190.03,13.50557612]
[1735305624438,7.67117612,190.1,190.03,10.87117612]
[1735305624835,7.67117612,190.12,190.05,7.67117612]
[1735305625328,2.6333,190.11,190.07,2.6338]
[1735305625532,63.16226405,190.15,190.08,3.2]
[1735305626634,63.16226405,190.15,190.04,3.2]
[1735305626635,7.67117612,190.09,190.04,3.2]
[1735305627538,2.6339,190.07,190.04,3.2]
[1735305628531,7.67117612,190.09,190.04,3.2]
[1735305628738,2.6337,190.08,190.04,5.8343]
[1735305632640,2.6337,190.08,190.04,3.2]
[1735305633338,7.67117612,190.09,189.97,4.7287]
[1735305633540,7.67117612,190.07,190.0,7.67117612]
[1735305633936,2.6344,190.04,190.0,7.67117612]
[1735305634143,7.67117612,190.07,189.99,2.6349]
[1735305635042,2.6343,190.04,190.0,2.6348]
[1735305635739,2.6343,190.04,190.0,10.30597612]
[1735305636139,2.6343,190.04,190.0,7.67117612]
[1735305636440,2.6344,190.03,189.99,2.6349]
[1735305636738,2.6344,190.03,189.97,4.7287]
[1735305636943,2.6346,190.02,189.97,4.7529]
[1735305637143,3.2,190.1,189.97,4.7529]
[1735305637144,7.67117612,190.05,189.97,4.7529]
[1735305637446,7.67117612,190.05,189.98,2.635]
[1735305637745,2.6346,190.02,189.98,2.635]
[1735305639141,2.6346,190.02,189.98,10.30617612]
[1735305639547,2.6341,190.06,190.01,2.6347]
[1735305639745,7.67117612,190.08,190.0,7.67117612]
[1735305640747,2.634,190.06,190.02,2.6345]
[1735305644048,10.30517612,190.06,190.02,2.6345]
[1735305644552,7.67117612,190.06,189.97,4.7529]
[1735305644752,2.6342,190.05,189.99,7.67117612]
[1735305645251,2.6342,190.05,190.01,2.6346]
[1735305645551,7.67117612,190.06,189.97,4.7529]
[1735305645748,2.6345,190.03,189.98,7.67117612]
[1735305645948,7.67117612,190.04,189.98,10.30627612]
[1735305647457,2.6346,190.02,189.98,10.30627612]
[1735305653861,2.6346,190.02,189.98,2.6351]
[1735305659668,7.67117612,190.04,189.96,7.67117612]
[1735305659967,7.67117612,190.02,189.96,7.67117612]
[1735305660657,3.234,190.09,189.96,7.67117612]
[1735305660658,7.67117612,190.03,189.96,7.67117612]
[1735305661164,2.635,189.99,189.96,7.67117612]
[1735305661369,7.67117612,189.99,189.94,3.22]
[1735305661568,7.67117612,189.99,189.92,15.86114801]
[1735305661767,2.6351,189.98,189.94,2.6355]
[1735305662565,2.6353,189.97,189.94,2.6355]
[1735305662969,7.67117612,189.99,189.94,2.6355]
[1735305663169,2.6351,189.98,189.94,2.6355]
[1735305666769,2.6351,189.98,189.92,5.08137189]
[1735305666770,7.67117612,189.98,189.92,5.08137189]
[1735305666974,7.67117612,189.98,189.92,1.86137189]
[1735305667976,2.6356,189.95,189.88,46.49464142]
[1735305668175,7.67117612,189.96,189.89,13.52747612]
[1735305668474,7.67117612,189.96,189.89,5.8563]
[1735305669069,2.6358,189.94,189.89,5.8563]
[1735305670775,7.67117612,189.96,189.89,5.8563]
[1735305670978,2.6357,189.94,189.89,5.8563]
[1735305671378,10.30687612,189.94,189.89,5.8563]
[1735305671685,2.6357,189.94,189.89,5.8563]
[1735305672278,10.30687612,189.94,189.89,2.6363]
[1735305672867,7.67117612,189.94,189.88,3.22]
[1735305673073,2.636,189.92,189.88,13.52767612]
[1735305674775,2.636,189.92,189.88,10.30767612]
[1735305675077,2.636,189.92,189.88,2.6365]
[1735305675479,10.30717612,189.92,189.88,2.6365]
[1735305675679,7.67117612,189.92,189.88,2.6365]
[1735305675882,10.30717612,189.92,189.88,2.6365]
[1735305676783,2.6358,189.94,189.86,7.67117612]
[1735305676986,1.6054,190.01,189.9,7.67117612]
[1735305677282,7.67117612,190.02,189.96,7.67117612]
[1735305677477,57.97826513,190.06,189.98,7.67117612]
[1735305677684,29.41302554,190.05,189.98,7.67117612]
[1735305678185,29.41302554,190.05,190.0,2.6348]
[1735305678379,7.67117612,190.05,189.98,7.67117612]
[1735305678578,7.67117612,190.05,190.0,7.67117612]
[1735305679276,7.67117612,190.03,189.97,3.22]
[1735305679677,2.634,190.07,190.01,2.6346]
[1735305679982,7.67117612,190.07,190.0,10.83117612]
[1735305680379,1.5244,190.14,190.02,7.67117612]
[1735305680576,7.67117612,190.1,190.02,7.67117612]
[1735305680777,1.5244,190.14,190.04,7.67117612]
[1735305681075,7.67117612,190.11,190.06,2.634]
[1735305681871,7.67117612,190.12,190.06,7.67117612]
[1735305683181,10.30437612,190.12,190.06,10.30507612]
[1735305683577,7.67117612,190.12,190.05,3.16]
[1735305684485,2.6334,190.11,190.05,5.7941]
[1735305685477,1.644,190.15,190.06,7.67117612]
[1735305685785,7.67117612,190.14,190.08,2.6337]
[1735305686478,10.30407612,190.14,190.08,2.6337]
[1735305687080,2.6329,190.14,190.08,2.6337]
[1735305687284,2.6329,190.14,189.98,3.099]
[1735305687285,2.6333,190.11,190.04,3.16]
[1735305687480,7.67117612,190.12,190.04,10.83117612]
[1735305688486,2.6333,190.11,190.05,2.6341]
[1735305688684,7.67117612,190.1,190.04,10.83117612]
[1735305688984,7.67117612,190.1,190.04,3.16]
[1735305689185,7.67117612,190.08,190.04,3.16]
[1735305689486,2.6339,190.07,190.02,10.30567612]
[1735305689685,1.5927,190.18,190.0,7.67117612]
[1735305689686,7.67117612,190.06,190.0,7.67117612]
[1735305689886,7.67117612,190.06,190.0,10.83117612]
[1735305690589,10.30527612,190.06,190.0,13.46597612]
[1735305690887,7.67117612,190.06,190.0,10.30597612]
[1735305691088,2.6343,190.04,190.0,3.16]
[1735305691283,7.67117612,190.06,190.0,3.16]
[1735305691584,7.67117612,190.04,189.99,2.6349]
[1735305691784,7.67117612,190.02,189.97,4.3135]
[1735305691981,7.67117612,190.02,189.97,2.6351]
[1735305692782,10.30587612,190.02,189.97,2.6351]
[1735305694689,1.6611,190.1,189.96,10.83117612]
[1735305694690,2.6343,190.05,189.99,2.6349]
[1735305694886,7.67117612,190.05,189.99,2.6349]
[1735305696087,2.6344,190.04,189.99,2.6349]
[1735305697094,2.6344,190.03,189.98,2.6351]
[1735305697791,1.6611,190.1,189.98,7.67117612]
[1735305697792,10.30527612,190.06,189.98,7.67117612]
[1735305699184,10.30527612,190.06,190.02,2.6345]
[1735305699385,7.67117612,190.08,190.0,7.67117612]
[1735305699593,7.67117612,190.08,190.01,3.16]
[1735305699994,7.67117612,190.1,190.02,7.67117612]
[1735305700792,7.67117612,190.1,190.04,7.67117612]
[1735305701299,2.6336,190.09,190.05,2.6341]
[1735305701596,2.6336,190.09,190.04,7.67117612]
[1735305702397,2.6336,190.09,190.04,10.30547612]
[1735305702697,2.6336,190.09,190.04,2.6343]
[1735305706497,7.67117612,190.11,190.04,7.67117612]
[1735305706997,7.67117612,190.11,190.08,2.6336]
[1735305708907,10.30417612,190.13,190.08,2.6336]
[1735305710405,7.67117612,190.19,190.12,7.67117612]
[1735305710708,7.67117612,190.19,190.12,10.83117612]
[1735305711505,10.30347612,190.19,190.14,2.6329]
[1735305712200,2.6323,190.19,190.14,2.6329]
[1735305712402,2.6323,190.19,190.14,10.30407612]
[1735305712596,2.93218656,190.24,190.12,3.16]
[1735305712597,7.67117612,190.23,190.16,7.67117612]
[1735305712904,7.67117612,190.23,190.17,3.16]
[1735305713108,4.1692,190.24,190.19,2.6322]
[1735305713501,1.5377,190.24,190.19,2.6322]
[1735305713709,7.67117612,190.23,190.17,3.16]
[1735305714310,1.6212,190.27,190.17,5.7924]
[1735305714510,13.28700102,190.26,190.17,5.7924]
[1735305714710,13.28700102,190.26,190.17,3.16]
[1735305714913,2.632,190.21,190.17,3.16]
[1735305715307,13.28700102,190.26,190.17,3.16]
[1735305717413,2.6321,190.2,190.17,3.16]
[1735305717815,13.28700102,190.2,190.11,3.16]
[1735305718119,13.28700102,190.17,190.08,3.16]
[1735305718521,2.6331,190.13,190.08,5.7936]
[1735305718916,13.28700102,190.17,190.08,5.7936]
[1735305719117,2.6328,190.15,190.08,5.7936]
[1735305719318,13.28700102,190.17,190.08,5.7936]
[1735305719517,13.28700102,190.17,190.09,2.6335]
[1735305720219,2.633,190.14,190.08,3.16]
[1735305720724,13.28700102,190.17,190.08,3.16]
[1735305720913,13.28700102,190.17,190.07,3.16]
[1735305721110,13.28700102,190.14,190.07,3.16]
[1735305722314,13.28700102,190.17,190.07,3.16]
[1735305722718,13.28700102,190.17,190.06,3.16]
[1735305723218,2.633,190.14,190.08,2.6336]
[1735305723721,13.28700102,190.17,190.06,3.16]
[1735305723915,2.6329,190.14,190.1,2.6333]
[1735305724117,13.28700102,190.17,190.06,3.16]
[1735305725721,1.6609,190.18,190.06,3.16]
[1735305727930,1.6609,190.18,190.09,2.6335]
[1735305728132,1.6609,190.18,190.06,3.16]
[1735305729233,2.6328,190.15,190.11,2.6333]
[1735305730527,1.6609,190.18,190.06,3.16]
[1735305730730,2.633,190.14,190.09,2.6335]
[1735305731729,2.633,190.14,190.1,2.6334]
[1735305732826,1.6609,190.18,190.06,3.16]
[1735305733027,1.5823,190.19,190.08,13.28700102]
[1735305733232,13.28700102,190.23,190.11,13.28700102]
[1735305733434,2.6317,190.23,190.18,2.6322]
[1735305735233,2.6317,190.23,190.19,2.6322]
[1735305736135,2.6315,190.25,190.2,2.632]
[1735305736736,16.64050102,190.26,190.18,2.6322]
[1735305737138,2.6317,190.23,190.18,2.6322]
[1735305737437,16.64050102,190.26,190.17,3.16]
[1735305738433,2.6315,190.24,190.2,2.632]
[1735305738637,2.6315,190.24,190.17,3.16]
[1735305739042,2.6315,190.24,190.2,2.632]
[1735305739639,55.459554,190.27,190.17,16.44700102]
[1735305740140,63.95952459,190.27,190.2,8.49997059]
[1735305741338,2.6309,190.29,190.25,2.6313]
[1735305741637,8.49997059,190.31,190.25,2.6313]
[1735305742139,2.6308,190.29,190.25,2.6313]
[1735305742344,13.2758425,190.31,190.23,3.16]
[1735305743031,2.6313,190.26,190.23,3.16]
[1735305743537,2.6315,190.24,190.23,3.16]
[1735305743743,13.2758425,190.28,190.19,5.7921]
[1735305743945,13.2758425,190.28,190.19,3.16]
[1735305744144,2.6313,190.26,190.19,3.16]
[1735305744344,13.2758425,190.28,190.19,3.16]
[1735305744846,2.6316,190.24,190.19,3.16]
[1735305745046,2.6316,190.24,190.19,5.7921]
[1735305745644,2.6317,190.23,190.19,3.16]
[1735305746545,2.6317,190.23,190.19,5.7921]
[1735305746937,2.6317,190.23,190.19,3.16]
[1735305747141,2.6317,190.23,190.19,5.7921]
[1735305748045,2.6315,190.24,190.2,2.632]
[1735305748443,2.6315,190.24,190.19,3.16]
[1735305749245,2.6317,190.23,190.18,2.6323]
[1735305749447,13.2758425,190.25,190.17,3.16]
[1735305749646,13.2758425,190.25,190.12,18.1181425]
[1735305749949,13.2758425,190.22,190.12,4.8423]
[1735305750146,13.2758425,190.22,190.12,6.4017]
[1735305750344,2.6322,190.19,190.14,2.6329]
[1735305751448,2.6325,190.17,190.12,9.0347]
[1735305751653,2.6325,190.17,190.12,3.16]
[1735305752550,2.6325,190.17,190.13,2.633]
[1735305753051,2.6325,190.17,190.09,13.2758425]
[1735305753255,2.6326,190.16,190.12,2.6331]
[1735305753648,2.6326,190.16,190.11,2.6333]
[1735305754354,2.6326,190.16,190.12,2.6331]
[1735305756149,13.2758425,190.19,190.1,3.16]
[1735305756352,2.6329,190.15,190.1,2.6334]
[1735305759557,2.6318,190.23,190.18,2.6323]
[1735305759754,21.74184942,190.26,190.14,3.16]
[1735305759957,21.74184942,190.26,190.15,3.16]
[1735305760960,2.6316,190.24,190.19,2.6322]
[1735305761262,74.20890763,190.27,190.15,3.16]
[1735305761263,16.2306425,190.27,190.15,3.16]
[1735305761465,2.6322,190.2,190.15,5.7926]
[1735305762260,13.2758425,190.24,190.11,1.6298]
[1735305762261,13.2758425,190.24,190.13,2.6329]
[1735305762473,13.2758425,190.24,190.13,5.7929]
[1735305762762,2.632,190.21,190.13,5.7929]
[1735305762957,13.2758425,190.24,190.13,5.7929]
[1735305763361,16.4358425,190.24,190.13,5.7929]
[1735305764470,16.4358425,190.24,190.14,2.6329]
[1735305764962,2.6322,190.19,190.14,2.6329]
[1735305765766,2.6322,190.19,190.13,3.16]
[1735305766068,2.6321,190.2,190.15,2.6327]
[1735305770971,2.6327,190.16,190.12,2.633]
[1735305771172,13.2758425,190.21,190.1,3.12]
[1735305771368,3.255,190.2,190.1,3.12]
[1735305772379,2.6328,190.15,190.1,5.7534]
[1735305773473,3.255,190.2,190.07,16.4926425]
[1735305773681,13.2758425,190.18,190.07,16.4926425]
[1735305773978,13.2758425,190.18,190.07,4.7313]
[1735305774369,2.6333,190.12,190.07,2.6337]
[1735305774575,13.2758425,190.15,190.06,3.12]
[1735305774968,13.2758425,190.15,190.06,5.754]
[1735305775779,2.6334,190.1,190.06,5.754]
[1735305775975,13.2758425,190.15,190.06,5.754]
[1735305776580,13.2758425,190.15,190.06,2.634]
[1735305777080,2.6333,190.11,190.06,2.634]
[1735305777470,13.2758425,190.15,190.08,2.6337]
[1735305777981,2.6331,190.13,190.08,2.6337]
[1735305778581,2.6332,190.12,190.08,2.6337]
[1735305778984,13.2758425,190.15,190.06,2.6339]
[1735305779178,2.6334,190.11,190.06,2.6339]
[1735305780283,13.2758425,190.15,190.05,2.6341]
[1735305780884,2.6333,190.12,190.04,3.12]
[1735305781184,13.2758425,190.18,190.04,16.3958425]
[1735305781388,2.6328,190.15,190.1,2.6333]
[1735305781879,13.2758425,190.18,190.1,2.6333]
[1735305782184,2.6329,190.14,190.1,2.6333]
[1735305785678,13.2758425,190.18,190.07,2.6338]
[1735305786186,2.6328,190.15,190.07,2.6338]
[1735305786389,13.2758425,190.18,190.08,2.6336]
[1735305786885,3.255,190.2,190.09,3.12]
[1735305787085,3.255,190.2,190.1,16.3958425]
[1735305787287,1.6489,190.2,190.11,3.12]
[1735305787487,2.6322,190.19,190.11,4.681]
[1735305788781,2.6322,190.19,190.14,2.6328]
[1735305789181,2.6324,190.18,190.14,2.6328]
[1735305791791,1.6489,190.2,190.11,4.681]
[1735305792290,2.6327,190.16,190.11,7.3142]
[1735305792987,2.6324,190.18,190.14,2.6328]
[1735305793394,13.2758425,190.22,190.11,4.681]
[1735305793690,2.6325,190.17,190.13,2.633]
[1735305795895,8.50695341,190.2,190.15,2.6327]
[1735305796090,8.50695341,190.2,190.12,8.50695341]
[1735305796693,2.6323,190.19,190.14,2.6329]
[1735305797092,8.50695341,190.2,190.14,2.6329]
[1735305797291,3.12,190.2,190.04,29.26614196]
[1735305797487,8.50695341,190.15,190.07,8.50695341]
[1735305798093,2.6331,190.13,190.08,2.6337]
[1735305798297,8.50695341,190.15,190.08,5.7537]
[1735305798692,2.6332,190.12,190.08,5.7537]
[1735305799197,2.633,190.14,190.09,2.6335]
[1735305799594,8.50695341,190.16,190.08,3.12]
[1735305799895,2.6331,190.13,190.08,5.7537]
[1735305800591,1.6619,190.18,190.05,8.50695341]
[1735305800592,8.50695341,190.12,190.05,8.50695341]
[1735305800797,8.50695341,190.12,190.06,3.14]
[1735305801192,8.50695341,190.12,190.0,30.90484196]
[1735305801493,8.50695341,190.12,190.03,8.50695341]
[1735305801798,2.6337,190.08,190.03,11.14135341]
[1735305802694,2.6339,190.07,190.02,11.64695341]
[1735305802895,2.6339,190.07,190.02,14.28145341]
[1735305803088,2.6339,190.07,190.02,11.64695341]
[1735305803291,8.50695341,190.1,190.02,11.64695341]
[1735305803492,8.50695341,190.1,190.03,2.6343]
[1735305804292,2.6337,190.08,190.04,2.6342]
[1735305808002,2.6337,190.09,190.03,2.6344]
[1735305808202,8.50695341,190.11,190.03,2.6344]
[1735305808801,2.6339,190.07,190.03,2.6344]
[1735305812901,3.14,190.15,190.02,11.64695341]
[1735305813103,2.6337,190.08,190.04,2.6342]
[1735305813700,2.634,190.07,190.02,5.7744]
[1735305813895,8.50695341,190.1,190.02,14.28135341]
[1735305815306,2.634,190.06,190.02,14.28135341]
[1735305817912,8.50695341,190.1,190.02,11.64695341]
[1735305818111,2.6342,190.05,190.02,3.14]
[1735305818617,2.6342,190.05,190.01,2.6347]
[1735305819014,2.6342,190.05,190.02,2.6345]
[1735305820009,8.50695341,190.08,190.02,2.6345]
[1735305820205,2.634,190.06,190.02,2.6345]
[1735305825214,2.6342,190.05,190.01,2.6347]
[1735305828826,8.50695341,190.04,189.98,5.7751]
[1735305830021,8.50695341,190.02,189.93,4.8731]
[1735305830220,8.50695341,190.0,189.94,11.58695341]
[1735305830414,8.50695341,190.02,189.94,11.58695341]
[1735305830822,8.50695341,190.02,189.98,2.635]
[1735305835035,11.14155341,190.02,189.98,2.635]
[1735305836727,11.14145341,190.02,189.97,2.6351]
[1735305836932,8.50695341,190.04,189.96,8.50695341]
[1735305837129,3.1842,190.09,189.98,8.50695341]
[1735305837333,3.1842,190.09,190.0,8.50695341]
[1735305837733,8.50695341,190.08,190.0,8.50695341]
[1735305837932,11.14075341,190.08,190.03,2.6343]
[1735305838432,8.50695341,190.08,190.03,2.6343]
[1735305838631,2.6339,190.07,190.03,2.6343]
[1735305839240,11.14055341,190.09,190.04,2.6341]
[1735305839634,2.6336,190.09,190.04,8.50695341]
[1735305840138,2.6336,190.09,190.02,8.50695341]
[1735305840338,2.6336,190.09,190.04,8.50695341]
[1735305840535,3.1787,190.16,190.04,8.50695341]
[1735305840730,24.37424942,190.18,190.12,8.50695341]
[1735305840930,21.74184942,190.18,190.14,8.50695341]
[1735305841133,21.74184942,190.18,190.16,8.50695341]
[1735305841740,2.6319,190.21,190.16,8.50695341]
[1735305842138,2.6319,190.21,190.15,2.6327]
[1735305842343,1.5306,190.23,190.14,3.08]
[1735305842344,8.50695341,190.18,190.14,3.08]
[1735305843541,2.6325,190.17,190.11,11.14015341]
[1735305844045,8.50695341,190.18,190.11,8.50695341]
[1735305844340,8.50695341,190.16,190.1,3.08]
[1735305844536,8.50695341,190.12,190.03,3.08]
[1735305844730,8.50695341,190.12,190.05,2.634]
[1735305844731,2.6335,190.1,190.05,2.634]
[1735305845039,11.14045341,190.1,190.05,2.634]
[1735305845838,8.50695341,190.1,190.05,2.634]
[1735305847645,8.50695341,190.1,190.06,2.6339]
[1735305848440,3.08,190.16,190.04,8.50695341]
[1735305848738,8.50695341,190.13,190.08,2.6337]
[1735305850144,8.50695341,190.12,190.08,2.6337]
[1735305853145,8.50695341,190.14,190.09,2.6335]
[1735305854143,11.13985341,190.14,190.09,2.6335]
[1735305855454,11.13985341,190.14,190.06,11.58695341]
[1735305855749,11.13985341,190.14,190.1,2.6334]
[1735305861150,11.13985341,190.14,190.06,11.58695341]
[1735305861151,8.50695341,190.14,190.11,2.6333]
[1735305861352,8.50695341,190.16,190.08,8.50695341]
[1735305861949,8.50695341,190.16,190.11,2.6332]
[1735305861950,11.13965341,190.16,190.11,2.6332]
[1735305862153,11.13965341,190.16,190.08,8.50695341]
[1735305862458,1.5306,190.23,190.14,8.50695341]
[1735305862656,8.50695341,190.22,190.14,8.50695341]
[1735305862852,8.50695341,190.22,190.13,3.08]
[1735305862853,8.50695341,190.22,190.16,8.50695341]
[1735305863051,8.50695341,190.22,190.19,2.6322]
[1735305863463,8.50695341,190.22,190.16,8.50695341]
[1735305864461,11.13875341,190.22,190.16,11.13955341]
[1735305864663,2.6318,190.22,190.14,10.19545341]
[1735305864857,11.13875341,190.22,190.14,10.19545341]
[1735305865057,8.50695341,190.22,190.14,10.19545341]
[1735305865262,8.50695341,190.22,190.17,2.6323]
[1735305865763,8.50695341,190.22,190.16,2.6326]
[1735305867455,2.6319,190.21,190.16,2.6326]
[1735305868664,2.6319,190.21,190.14,10.19545341]
[1735305868863,2.6319,190.21,190.17,2.6325]
[1735305871366,2.6319,190.21,190.16,2.6326]
[1735305871867,11.13915341,190.2,190.15,2.6327]
[1735305872970,11.13915341,190.2,190.14,10.19545341]
[1735305873160,2.6319,190.21,190.17,2.6324]
[1735305873469,8.50695341,190.24,190.16,8.50695341]
[1735305874565,11.13845341,190.24,190.19,2.6321]
[1735305875160,8.50695341,190.24,190.19,2.6321]
[1735305875365,2.6316,190.23,190.19,2.6321]
[1735305875869,2.6316,190.23,190.16,8.50695341]
[1735305876070,2.6316,190.23,190.17,2.6323]
[1735305876970,2.6316,190.23,190.16,8.50695341]